bitfinex-derivatives/quotes_BNBF0:USTF0_20250715
["timestamp","ask_amount","ask_price","bid_price","bid_amount"]
[1752604824291,0.97333947,685.16,684.37,0.98240832]
[1752604824501,0.97333947,685.16,684.36,0.98240832]
[1752604826396,0.97333947,685.16,684.37,0.98240832]
[1752604826994,0.97333947,685.17,684.36,0.98240832]
[1752604827294,0.97333947,685.16,684.36,0.98240832]
[1752604827499,0.97333947,685.2,684.34,0.98240832]
[1752604827699,0.97333947,685.22,684.36,0.98240832]
[1752604827900,0.97333947,685.38,684.52,0.98240832]
[1752604828097,0.97333947,685.34,684.48,0.98240832]
[1752604829397,0.97333947,685.34,684.47,0.98240832]
[1752604829604,0.97333947,685.34,684.48,0.98240832]
[1752604831506,0.97333947,685.33,684.48,0.98240832]
[1752604831804,0.97333947,685.28,684.52,0.98240832]
[1752604832003,0.97333947,685.27,684.51,0.98240832]
[1752604832202,0.97333947,685.27,684.49,0.98240832]
[1752604832404,0.97333947,685.19,684.53,0.98240832]
[1752604832602,0.97333947,685.15,684.49,0.98240832]
[1752604833106,0.97333947,685.14,684.49,0.98240832]
[1752604833502,0.97333947,685.15,684.49,0.98240832]
[1752604834705,0.97333947,685.17,684.47,0.98240832]
[1752604836305,0.97333947,685.17,684.48,0.98240832]
[1752604836905,0.97333947,685.18,684.47,0.98240832]
[1752604837505,0.97333947,685.17,684.47,0.98240832]
[1752604838807,0.97333947,685.2,684.36,0.98240832]
[1752604839010,0.97333947,685.18,684.33,0.98240832]
[1752604839212,0.97333947,685.14,684.3,0.98240832]
[1752604839412,0.97333947,685.12,684.28,0.98240832]
[1752604840512,0.97333947,685.13,684.28,0.98240832]
[1752604841415,0.97333947,685.12,684.29,0.98240832]
[1752604841614,0.97333947,685.15,684.31,0.98240832]
[1752604841814,0.97333947,685.18,684.35,0.98240832]
[1752604842115,0.97333947,685.12,684.42,0.98240832]
[1752604842311,0.97333947,685.11,684.42,0.98240832]
[1752604843110,0.25405818,685.44,684.48,0.98240832]
[1752604843111,0.97333947,685.18,684.48,0.98240832]
[1752604844714,0.97333947,685.19,684.48,0.98240832]
[1752604845217,0.97333947,685.18,684.48,0.98240832]
[1752604846116,0.97333947,685.21,684.51,0.98240832]
[1752604848219,0.97333947,685.2,684.52,0.98240832]
[1752604850721,0.97333947,685.22,684.51,0.98240832]
[1752604851019,0.97333947,685.2,684.52,0.98240832]
[1752604851418,0.97333947,685.23,684.56,0.98240832]
[1752604851618,0.97333947,685.25,684.54,0.98240832]
[1752604851823,0.97333947,685.28,684.57,0.98240832]
[1752604852321,0.97333947,685.29,684.57,0.98240832]
[1752604852523,0.97333947,685.32,684.6,0.98240832]
[1752604853520,0.97333947,685.33,684.61,0.98240832]
[1752604854325,0.97333947,685.34,684.6,0.98240832]
[1752604857021,0.97333947,685.33,684.53,0.98240832]
[1752604857523,0.97333947,685.29,684.49,0.98240832]
[1752604858325,0.97333947,685.28,684.49,0.98240832]
[1752604858524,0.25400996,685.53,683.2,4.5324323]
[1752604858525,0.97333947,685.24,684.45,0.98240832]
[1752604858830,0.97333947,685.21,684.44,0.98240832]
[1752604859025,0.97333947,685.2,684.43,0.98240832]
[1752604859527,0.97333947,685.19,684.43,0.98240832]
[1752604860025,0.97333947,685.2,684.43,0.98240832]
[1752604860626,0.97333947,685.19,684.43,0.98240832]
[1752604860825,0.97333947,685.15,684.45,0.98240832]
[1752604861030,0.97333947,685.09,684.39,0.98240832]
[1752604861530,0.97333947,685.1,684.4,0.98240832]
[1752604861829,0.97333947,685.08,684.41,0.98240832]
[1752604862028,0.97333947,685.08,683.62,3.2374516]
[1752604862029,0.97333947,685.09,684.4,0.98240832]
[1752604862231,0.97333947,685.07,684.41,0.98240832]
[1752604862827,0.97392059,685.07,684.41,0.98247947]
[1752604863330,0.97392059,685.07,684.42,0.98247947]
[1752604864031,0.97392059,685.05,684.4,0.98247947]
[1752604864230,0.97392059,685.05,684.13,1.9648166]
[1752604864231,0.97392059,685.07,684.41,0.98247947]
[1752604864431,0.97392059,685.07,684.42,0.98247947]
[1752604865830,0.97392059,685.1,684.4,0.98247947]
[1752604866331,0.97392059,685.09,684.4,0.98247947]
[1752604868137,0.97392059,685.1,684.38,0.98247947]
[1752604868336,0.97392059,685.08,684.36,0.98247947]
[1752604869033,0.97392059,684.99,684.27,0.98247947]
[1752604869233,0.97392059,685.0,684.27,0.98247947]
[1752604869535,0.97392059,684.99,684.27,0.98247947]
[1752604870334,0.97392059,684.93,684.24,0.98247947]
[1752604871134,0.97392059,684.9,684.2,0.98247947]
[1752604871339,0.97392059,684.91,684.19,0.98247947]
[1752604872035,0.97392059,684.85,684.13,0.98247947]
[1752604872339,0.97392059,684.83,684.08,0.98247947]
[1752604872638,0.97392059,684.84,684.09,0.98247947]
[1752604873437,0.97392059,684.84,683.94,1.3098777]
[1752604873438,0.97392059,684.85,684.07,0.98247947]
[1752604874335,0.97392059,684.87,684.05,0.98247947]
[1752604874836,0.97392059,684.87,684.06,0.98247947]
[1752604875240,0.97392059,684.88,684.05,0.98247947]
[1752604875438,0.97392059,684.88,683.9,1.3098777]
[1752604875439,0.97392059,684.88,684.04,0.98247947]
[1752604876241,0.97392059,684.88,683.74,1.9648166]
[1752604876242,0.97392059,684.89,684.03,0.98247947]
[1752604876442,0.97392059,684.87,684.05,0.98247947]
[1752604876642,0.97392059,684.87,683.77,1.9648166]
[1752604876643,0.97392059,684.86,684.04,0.98247947]
[1752604877339,1.9466789,685.13,682.95,4.5324323]
[1752604877340,0.97392059,684.87,684.03,0.98247947]
[1752604877540,0.97392059,684.91,684.0,0.98247947]
[1752604877742,0.97392059,684.9,684.0,0.98247947]
[1752604878039,0.97392059,684.83,683.93,0.98247947]
[1752604878238,0.97392059,684.85,683.92,0.98247947]
[1752604878540,0.97392059,684.78,683.85,0.98247947]
[1752604879040,0.97392059,684.77,683.85,0.98247947]
[1752604879240,0.97392059,684.79,683.83,0.98247947]
[1752604880345,0.97392059,684.81,683.82,0.98247947]
[1752604880746,0.97392059,684.81,683.79,0.98247947]
[1752604881041,0.97392059,684.78,683.8,0.98247947]
[1752604881346,0.97392059,684.75,683.71,0.98247947]
[1752604881644,0.97392059,684.7,683.66,0.98247947]
[1752604881944,0.97392059,684.63,683.63,0.98247947]
[1752604882248,0.97392059,684.65,683.61,0.98247947]
[1752604882443,0.97392059,684.66,683.61,0.98247947]
[1752604882843,0.97392059,684.6,683.53,0.98247947]
[1752604883242,0.97392059,684.65,683.53,0.98247947]
[1752604883446,0.97392059,684.64,683.52,0.98247947]
[1752604884247,0.97392059,684.65,683.51,0.98247947]
[1752604884447,0.97392059,684.63,683.51,0.98247947]
[1752604884644,0.97392059,684.63,683.52,0.98247947]
[1752604885245,0.97392059,684.65,683.5,0.98247947]
[1752604886146,0.97392059,684.67,683.48,0.98247947]
[1752604887352,0.97392059,684.7,683.45,0.98247947]
[1752604888250,0.97392059,684.72,683.44,0.98247947]
[1752604888555,0.97392059,684.73,683.43,0.98247947]
[1752604888950,0.97392059,684.7,683.4,0.98247947]
[1752604889157,0.97392059,684.71,683.39,0.98247947]
[1752604889652,0.97392059,684.72,683.38,0.98247947]
[1752604890151,0.97392059,684.73,683.37,0.98247947]
[1752604890752,0.25400996,685.53,683.37,0.98247947]
[1752604890753,0.97392059,684.72,683.37,0.98247947]
[1752604890957,0.97392059,684.71,683.35,0.98247947]
[1752604891252,0.97392059,684.68,683.3,0.98247947]
[1752604891654,0.97392059,684.68,683.29,0.98247947]
[1752604892052,0.97392059,684.68,683.3,0.98247947]
[1752604892257,0.97392059,684.7,683.29,0.98247947]
[1752604892658,0.97392059,684.69,683.3,0.98247947]
[1752604892858,0.97392059,684.68,683.29,0.98247947]
[1752604893267,0.97392059,684.69,683.28,0.98247947]
[1752604893455,0.97392059,684.69,683.27,0.98247947]
[1752604893663,0.97392059,684.68,683.28,0.98247947]
[1752604894164,0.97392059,684.66,683.25,0.98247947]
[1752604894460,0.97392059,684.65,683.24,0.98247947]
[1752604895261,0.97392059,684.67,683.23,0.98247947]
[1752604896360,0.97392059,684.65,683.23,0.98247947]
[1752604896766,0.97392059,684.66,683.23,0.98247947]
[1752604897164,0.97392059,684.68,683.22,0.98247947]
[1752604897368,0.97392059,684.72,683.24,0.98247947]
[1752604897967,0.97392059,684.75,683.27,0.98247947]
[1752604898265,0.97392059,684.76,683.26,0.98247947]
[1752604898470,0.97392059,684.79,683.29,0.98247947]
[1752604899067,0.97392059,684.79,683.3,0.98247947]
[1752604899270,0.97392059,684.8,683.29,0.98247947]
[1752604899470,1.2977859,684.93,682.23,4.5324323]
[1752604899471,0.97392059,684.83,683.32,0.98247947]
[1752604900169,0.97392059,684.84,683.32,0.98247947]
[1752604900474,0.97392059,684.86,683.34,0.98247947]
[1752604901169,0.97392059,684.87,683.34,0.98247947]
[1752604901669,0.97392059,684.86,683.34,0.98247947]
[1752604902672,0.97392059,684.87,683.33,0.98247947]
[1752604903073,0.97392059,684.87,683.34,0.98247947]
[1752604903276,0.97392059,684.93,683.4,0.98247947]
[1752604903476,0.97392059,684.94,683.41,0.98247947]
[1752604904177,0.25400996,685.53,683.4,0.98247947]
[1752604904178,0.97392059,684.95,683.4,0.98247947]
[1752604906775,0.97392059,684.9,683.35,0.98247947]
[1752604907278,0.97392059,684.89,683.34,0.98247947]
[1752604907979,0.97392059,684.88,683.34,0.98247947]
[1752604908282,0.97392059,684.88,683.35,0.98247947]
[1752604908782,0.97392059,684.85,683.36,0.98247947]
[1752604909382,0.97392059,684.84,683.37,0.98247947]
[1752604909783,0.97392059,684.85,683.37,0.98247947]
[1752604910286,0.97392059,684.78,683.31,0.98247947]
[1752604910584,0.97392059,684.51,683.04,0.98247947]
[1752604910786,0.97392059,684.79,683.32,0.98247947]
[1752604910985,0.97392059,684.78,683.32,0.98247947]
[1752604911181,0.97392059,684.86,683.28,0.98247947]
[1752604911482,0.97392059,684.79,683.22,0.98247947]
[1752604911686,0.97392059,684.8,683.19,0.98247947]
[1752604911887,0.97392059,684.53,682.93,0.98247947]
[1752604912188,0.97392059,684.78,683.18,0.98247947]
[1752604912389,0.97392059,684.58,682.99,0.98247947]
[1752604912582,0.97392059,684.6,683.01,0.98247947]
[1752604912782,0.97392059,684.56,683.04,0.98247947]
[1752604913287,1.9466789,684.88,682.1,3.2374516]
[1752604913288,0.97392059,684.64,683.14,0.98247947]
[1752604913484,0.97392059,684.6,683.16,0.98247947]
[1752604913988,0.97392059,684.61,683.17,0.98247947]
[1752604914185,0.97392059,684.62,683.18,0.98247947]
[1752604914489,0.97392059,684.79,683.11,0.98247947]
[1752604914685,0.97392059,684.78,683.09,0.98247947]
[1752604915388,0.97392059,684.79,683.13,0.98247947]
[1752604915888,0.25400996,685.53,683.09,0.98247947]
[1752604915889,0.97392059,684.75,683.09,0.98247947]
[1752604916188,0.97392059,684.74,683.07,0.98247947]
[1752604916385,0.97392059,684.71,683.08,0.98247947]
[1752604917390,0.97392059,684.72,683.11,0.98247947]
[1752604917586,0.97392059,684.7,683.09,0.98247947]
[1752604917787,0.97392059,684.64,683.04,0.98247947]
[1752604918188,0.97392059,684.65,683.03,0.98247947]
[1752604918388,0.97392059,684.63,683.05,0.98247947]
[1752604918790,0.97392059,684.58,683.0,0.98247947]
[1752604919391,0.97392059,684.4,683.12,0.98247947]
[1752604919890,0.97392059,684.4,683.0,1.3098777]
[1752604919891,0.97392059,684.41,683.13,0.98247947]
[1752604920091,0.97392059,684.41,683.14,0.98247947]
[1752604920289,0.97392059,684.44,683.16,0.98247947]
[1752604920488,0.97392059,684.43,683.15,0.98247947]
[1752604920887,0.97392059,684.42,683.14,0.98247947]
[1752604921089,0.97392059,684.42,683.15,0.98247947]
[1752604921489,0.97392059,684.42,683.16,0.98247947]
[1752604921789,0.97392059,684.45,683.19,0.98247947]
[1752604922389,0.97392059,684.44,683.2,0.98247947]
[1752604923390,0.97392059,684.43,683.2,0.98247947]
[1752604924089,0.97392059,684.42,683.18,0.98247947]
[1752604924394,0.97392059,684.38,683.18,0.98247947]
[1752604925295,0.97392059,684.38,683.19,0.98247947]
[1752604925992,0.97392059,684.47,683.13,0.98247947]
[1752604926192,0.97392059,684.5,683.2,0.98247947]
[1752604926395,0.97392059,684.5,683.19,0.98247947]
[1752604926895,0.97392059,684.49,683.18,0.98247947]
[1752604927195,4.4926747,685.93,683.2,0.98247947]
[1752604927196,0.97392059,684.47,683.2,0.98247947]
[1752604928091,0.97392059,684.47,683.19,0.98247947]
[1752604928296,0.97392059,684.43,683.18,0.98247947]
[1752604928498,0.97392059,684.44,683.19,0.98247947]
[1752604928899,0.97392059,684.46,683.21,0.98247947]
[1752604929297,0.97392059,684.44,683.23,0.98247947]
[1752604929494,3.46306326,685.53,683.26,0.98247947]
[1752604929495,0.97392059,684.47,683.26,0.98247947]
[1752604929698,0.97392059,684.49,683.24,0.98247947]
[1752604929995,0.97392059,684.5,683.25,0.98247947]
[1752604930294,0.97392059,684.49,683.27,0.98247947]
[1752604930493,0.97392059,684.45,683.3,0.98247947]
[1752604930697,0.97392059,684.54,683.4,0.98247947]
[1752604930893,0.97392059,684.55,683.4,0.98247947]
[1752604931095,0.97392059,684.56,683.42,0.98247947]
[1752604931394,0.97392059,684.56,683.43,0.98247947]
[1752604931598,0.97392059,684.59,683.46,0.98247947]
[1752604932200,0.97392059,684.58,683.47,0.98247947]
[1752604933196,0.97392059,684.57,683.48,0.98247947]
[1752604933498,0.97392059,684.55,683.5,0.98247947]
[1752604934199,0.97392059,684.54,683.51,0.98247947]
[1752604935301,0.97392059,684.52,683.53,0.98247947]
[1752604936102,0.97392059,684.52,683.52,0.98247947]
[1752604936301,0.97392059,684.51,683.53,0.98247947]
[1752604937000,0.97392059,684.47,683.49,0.98247947]
[1752604937200,0.97392059,684.43,683.49,0.98247947]
[1752604937399,0.97392059,684.41,683.5,0.98247947]
[1752604937700,0.97392059,684.42,683.5,0.98247947]
[1752604938201,0.97392059,684.41,683.51,0.98247947]
[1752604938401,0.97392059,684.4,683.52,0.98247947]
[1752604938597,0.97392059,684.42,683.54,0.98247947]
[1752604939202,0.97392059,684.42,683.56,0.98247947]
[1752604939499,0.97392059,684.43,683.56,0.98247947]
[1752604939700,0.97392059,684.42,683.56,0.98247947]
[1752604939897,0.97392059,684.52,683.67,0.98247947]
[1752604940302,0.97392059,684.51,683.68,0.98247947]
[1752604941202,3.2090533,685.45,683.69,0.98247947]
[1752604941203,0.97392059,684.49,683.69,0.98247947]
[1752604942504,0.97392059,684.5,683.69,0.98247947]
[1752604942805,0.97392059,684.46,683.72,0.98247947]
[1752604943801,0.97392059,684.46,683.73,0.98247947]
[1752604944000,1.9466789,684.71,682.98,3.2374516]
[1752604944001,0.97392059,684.49,683.75,0.98247947]
[1752604944305,0.97392059,684.5,683.74,0.98247947]
[1752604944504,0.97392059,684.59,683.83,0.98247947]
[1752604944704,0.97392059,684.59,683.7,1.3098777]
[1752604944705,0.97392059,684.62,683.87,0.98247947]
[1752604945305,0.97392059,684.65,683.87,0.98247947]
[1752604946001,0.97392059,684.66,683.86,0.98247947]
[1752604946201,0.97392059,684.71,683.91,0.98247947]
[1752604946400,0.97392059,684.72,683.9,0.98247947]
[1752604946803,0.97392059,684.73,683.89,0.98247947]
[1752604947204,0.97392059,684.74,683.88,0.98247947]
[1752604947803,0.97392059,684.74,683.89,0.98247947]
[1752604948305,0.97392059,684.75,683.87,0.98247947]
[1752604948802,0.97392059,684.74,683.88,0.98247947]
[1752604949005,0.97392059,684.74,683.89,0.98247947]
[1752604949206,0.97392059,684.74,682.72,4.5324323]
[1752604949207,0.97392059,684.74,683.88,0.98247947]
[1752604949502,0.97392059,684.75,683.88,0.98247947]
[1752604949802,0.97392059,684.74,683.87,0.98247947]
[1752604950002,0.97392059,684.75,683.88,0.98247947]
[1752604950201,0.97392059,684.76,683.87,0.98247947]
[1752604950605,0.97392059,684.74,683.88,0.98247947]
[1752604951200,0.97392059,684.75,683.88,0.98247947]
[1752604952104,0.97392059,684.77,683.87,0.98247947]
[1752604952308,0.97392059,684.77,683.86,0.98247947]
[1752604952907,0.97392059,684.84,683.93,0.98247947]
[1752604953311,0.97392059,684.85,683.91,0.98247947]
[1752604954106,0.97392059,684.91,683.88,0.98247947]
[1752604954306,0.97392059,684.92,683.87,0.98247947]
[1752604954811,0.97392059,684.92,683.86,0.98247947]
[1752604955310,0.97392059,684.93,683.86,0.98247947]
[1752604955509,0.97392059,684.94,683.86,0.98247947]
[1752604955707,0.97392059,684.96,683.88,0.98247947]
[1752604956206,0.97392059,684.97,683.87,0.98247947]
[1752604956809,0.97392059,684.97,683.88,0.98247947]
[1752604957209,0.97392059,685.0,683.89,0.98247947]
[1752604957610,0.97392059,685.03,683.92,0.98247947]
[1752604958214,3.2090533,686.07,683.91,0.98247947]
[1752604958215,0.97392059,685.04,683.91,0.98247947]
[1752604958412,0.97392059,685.05,683.91,0.98247947]
[1752604958914,0.97392059,685.06,683.91,0.98247947]
[1752604959315,0.97392059,685.07,683.9,0.98247947]
[1752604960217,0.97392059,685.08,683.89,0.98247947]
[1752604960617,0.97392059,685.02,683.83,0.98247947]
[1752604961217,0.97392059,685.01,683.82,0.98247947]
[1752604961418,0.97392059,685.01,683.8,0.98247947]
[1752604962218,0.97392059,685.02,683.8,0.98247947]
[1752604963221,0.97392059,685.02,683.79,0.98247947]
[1752604964119,0.97392059,685.01,683.78,0.98247947]
[1752604964316,0.97392059,685.02,683.78,0.98247947]
[1752604965221,0.97392059,685.08,683.84,0.98247947]
[1752604965420,0.97392059,685.28,683.93,0.98247947]
[1752604966317,0.97392059,685.29,683.91,0.98247947]
[1752604966720,0.97392059,685.28,683.92,0.98247947]
[1752604966921,0.97392059,685.2,683.83,0.98247947]
[1752604967219,1.2977859,685.42,683.83,0.98247947]
[1752604967220,0.97392059,685.21,683.83,0.98247947]
[1752604967420,0.97392059,685.22,683.85,0.98247947]
[1752604968019,0.97392059,685.23,683.86,0.98247947]
[1752604968216,0.97392059,685.24,683.86,0.98247947]
[1752604969223,0.97392059,685.26,683.86,0.98247947]
[1752604969818,0.97392059,685.25,683.86,0.98247947]
[1752604970018,0.97392059,685.26,683.86,0.98247947]
[1752604970322,0.97392059,685.27,683.85,0.98247947]
[1752604971119,0.97392059,685.37,683.97,0.98247947]
[1752604971325,0.97392059,685.4,683.97,0.98247947]
[1752604972121,0.97392059,685.4,683.98,0.98247947]
[1752604972320,0.97392059,685.41,683.96,0.98247947]
[1752604973321,0.97392059,685.42,683.96,0.98247947]
[1752604974222,0.97392059,685.43,683.95,0.98247947]
[1752604974826,0.97392059,685.41,683.97,0.98247947]
[1752604975121,0.97392059,685.42,683.96,0.98247947]
[1752604975324,0.97392059,685.38,683.98,0.98247947]
[1752604975825,3.2090533,686.4,682.96,3.2374516]
[1752604975826,0.97392059,685.36,683.95,0.98247947]
[1752604976022,0.97392059,685.33,683.94,0.98247947]
[1752604976725,0.97392059,685.29,683.9,0.98247947]
[1752604977122,0.97392059,685.25,683.92,0.98247947]
[1752604977325,0.97392059,685.26,683.92,0.98247947]
[1752604977927,0.97392059,685.26,683.06,3.2374516]
[1752604977928,0.97392059,685.25,683.93,0.98247947]
[1752604979327,0.97392059,685.24,683.93,0.98247947]
[1752604979730,0.97392059,685.24,683.94,0.98247947]
[1752604981328,0.97392059,685.23,683.94,0.98247947]
[1752604981524,0.97392059,685.24,683.94,0.98247947]
[1752604982826,0.97392059,685.24,683.95,0.98247947]
[1752604983025,0.97392059,685.24,683.94,0.98247947]
[1752604984327,0.97392059,685.23,683.95,0.98247947]
[1752604985026,0.97392059,685.25,683.94,0.98247947]
[1752604985330,0.97392059,685.24,683.95,0.98247947]
[1752604985532,0.97392059,685.24,683.96,0.98247947]
[1752604985827,0.97392059,685.22,683.94,0.98247947]
[1752604986730,0.97392059,685.21,683.95,0.98247947]
[1752604987329,0.97392059,685.2,683.96,0.98247947]
[1752604987928,0.97392059,685.19,683.95,0.98247947]
[1752604988130,0.97392059,685.19,683.93,0.98247947]
[1752604988426,0.97392059,685.17,683.95,0.98247947]
[1752604989329,0.97392059,685.16,683.96,0.98247947]
[1752604990328,0.97392059,685.14,683.98,0.98247947]
[1752604990632,0.97392059,685.13,683.98,0.98247947]
[1752604991332,0.25400996,685.53,683.99,0.98247947]
[1752604991333,0.97392059,685.12,683.99,0.98247947]
[1752604992233,0.97392059,685.11,684.0,0.98247947]
[1752604993030,0.97392059,685.1,684.01,0.98247947]
[1752604993234,0.97392059,685.07,684.03,0.98247947]
[1752604993834,0.97392059,685.09,684.05,0.98247947]
[1752604994034,0.97392059,685.14,684.1,0.98247947]
[1752604994235,0.97392059,685.13,684.11,0.98247947]
[1752604994837,0.97392059,685.11,684.12,0.98247947]
[1752604995139,0.97392059,685.1,684.13,0.98247947]
[1752604995337,0.25400996,685.53,684.13,0.98247947]
[1752604995338,0.97392059,685.09,684.13,0.98247947]
[1752604995633,0.97392059,685.08,684.12,0.98247947]
[1752604996133,0.97392059,685.08,684.13,0.98247947]
[1752604996338,0.97392059,685.07,684.13,0.98247947]
[1752604996837,0.97392059,685.07,684.14,0.98247947]
[1752604997238,0.97392059,685.05,684.15,0.98247947]
[1752604998241,0.97392059,685.04,684.17,0.98247947]
[1752604999341,0.97392059,685.02,684.19,0.98247947]
[1752605000344,0.97392059,685.01,684.2,0.98247947]
[1752605000643,0.97392059,685.02,684.2,0.98247947]
[1752605001039,0.97392059,685.05,684.19,0.98247947]
[1752605001243,0.97392059,685.03,684.2,0.98247947]
[1752605001544,0.97392059,685.12,684.16,0.98247947]
[1752605001841,0.97392059,685.12,684.15,0.98247947]
[1752605002241,0.97392059,685.1,684.17,0.98247947]
[1752605002441,0.97392059,685.14,684.14,0.98247947]
[1752605002740,1.2977859,685.34,682.77,4.5324323]
[1752605002741,0.97392059,685.2,684.2,0.98247947]
[1752605003140,1.2977859,685.4,682.62,4.5324323]
[1752605003141,0.97392059,685.23,684.23,0.98247947]
[1752605003343,0.97392059,685.22,684.25,0.98247947]
[1752605003546,0.97392059,685.23,684.25,0.98247947]
[1752605004246,0.97392059,685.21,684.26,0.98247947]
[1752605004843,0.97392059,685.27,684.31,0.98247947]
[1752605005745,0.97392059,685.28,684.31,0.98247947]
[1752605007750,0.97392059,685.25,684.33,0.98247947]
[1752605010249,0.97392059,685.24,684.33,0.98247947]
[1752605010453,0.97392059,685.19,684.37,0.98247947]
[1752605011252,1.2977859,685.34,684.37,0.98247947]
[1752605011253,0.97392059,685.18,684.37,0.98247947]
[1752605011649,0.97392059,685.19,684.38,0.98247947]
[1752605011850,0.97392059,685.19,684.37,0.98247947]
[1752605012448,0.97392059,685.18,684.37,0.98247947]
[1752605012653,0.97392059,685.19,684.37,0.98247947]
[1752605014151,0.97392059,685.18,684.38,0.98247947]
[1752605014354,0.97392059,685.17,684.38,0.98247947]
[1752605014554,0.97392059,685.18,684.38,0.98247947]
[1752605014954,0.97392059,685.18,684.07,1.9648166]
[1752605014955,0.97392059,685.18,684.39,0.98247947]
[1752605015454,0.97392059,685.17,684.4,0.98247947]
[1752605016157,0.97392059,685.17,684.39,0.98247947]
[1752605016351,0.97392059,685.17,684.4,0.98247947]
[1752605017158,0.97392059,685.17,684.39,0.98247947]
[1752605017355,0.97392059,685.17,684.4,0.98247947]
[1752605017553,0.97392059,685.16,684.4,0.98247947]
[1752605018055,0.97392059,685.18,684.42,0.98247947]
[1752605018358,0.97392059,685.19,684.43,0.98247947]
[1752605019759,0.97392059,685.21,684.42,0.98247947]
[1752605019958,0.97392059,685.2,684.42,0.98247947]
[1752605020157,0.97392059,685.21,684.43,0.98247947]
[1752605020654,0.97392059,685.28,684.49,0.98247947]
[1752605020953,0.97392059,685.28,684.5,0.98247947]
[1752605022460,0.25400996,685.53,683.64,3.2374516]
[1752605022461,0.97392059,685.3,684.48,0.98247947]
[1752605022661,0.97392059,685.29,684.49,0.98247947]
[1752605023156,0.97392059,685.3,684.48,0.98247947]
[1752605023360,0.97392059,685.3,684.49,0.98247947]
[1752605023561,0.97392059,685.29,684.49,0.98247947]
[1752605023857,0.97392059,685.3,684.5,0.98247947]
[1752605024159,0.97392059,685.31,684.49,0.98247947]
[1752605024358,0.97392059,685.3,684.5,0.98247947]
[1752605024662,0.97392059,685.29,684.5,0.98247947]
[1752605027065,0.97392059,685.29,684.49,0.98247947]
[1752605027361,0.97392059,685.3,684.49,0.98247947]
[1752605027566,0.97392059,685.3,684.51,0.98247947]
[1752605028161,0.25400996,685.53,684.57,0.98247947]
[1752605028162,0.97392059,685.38,684.57,0.98247947]
[1752605028463,0.97392059,685.42,684.6,0.98247947]
[1752605029161,0.97392059,685.43,684.59,0.98247947]
[1752605029765,0.97392059,685.42,684.6,0.98247947]
[1752605030164,0.97392059,685.43,684.59,0.98247947]
[1752605030367,0.97392059,685.42,684.59,0.98247947]
[1752605030763,1.2977859,685.57,684.45,1.3098777]
[1752605030764,0.97392059,685.43,684.6,0.98247947]
[1752605031169,0.97392059,685.44,684.59,0.98247947]
[1752605031768,0.97392059,685.43,684.59,0.98247947]
[1752605032268,0.97392059,685.5,684.55,0.98247947]
[1752605032766,0.97392059,685.5,684.56,0.98247947]
[1752605032964,0.97392059,685.5,684.2,1.9648166]
[1752605032965,0.97392059,685.53,684.58,0.98247947]
[1752605033169,0.97392059,685.57,684.6,0.98247947]
[1752605034067,0.97392059,685.6,684.58,0.98247947]
[1752605034269,0.97392059,685.61,684.57,0.98247947]
[1752605034569,0.97392059,685.59,684.59,0.98247947]
[1752605034967,0.97392059,685.59,684.23,1.9648166]
[1752605034968,0.97392059,685.7,684.7,0.98247947]
[1752605035270,0.97392059,685.69,684.7,0.98247947]
[1752605035671,0.97392059,685.66,684.72,0.98247947]
[1752605036268,0.97392059,685.69,684.71,0.98247947]
[1752605036672,0.97392059,685.68,684.72,0.98247947]
[1752605036972,0.97392059,685.65,684.74,0.98247947]
[1752605037167,0.97392059,685.68,684.71,0.98247947]
[1752605037771,0.97392059,685.7,684.7,0.98247947]
[1752605037966,0.97392059,685.72,684.72,0.98247947]
[1752605038268,0.97392059,685.83,684.78,0.98247947]
[1752605038471,0.97392059,685.84,684.8,0.98247947]
[1752605038671,0.97392059,685.86,684.79,0.98247947]
[1752605038869,0.97392059,685.92,684.85,0.98247947]
[1752605039067,0.97392059,685.93,684.84,0.98247947]
[1752605039372,0.97392059,685.97,684.83,0.98247947]
[1752605039567,0.97392059,685.96,684.83,0.98247947]
[1752605040266,0.97392059,686.01,684.88,0.98247947]
[1752605040672,0.97392059,686.04,684.92,0.98247947]
[1752605040871,0.97392059,686.04,684.91,0.98247947]
[1752605041072,0.97392059,686.04,684.92,0.98247947]
[1752605041272,0.97392059,686.07,684.89,0.98247947]
[1752605042171,0.97392059,686.07,684.72,1.3098777]
[1752605042172,0.97392059,686.08,684.88,0.98247947]
[1752605042576,0.97392059,686.06,684.89,0.98247947]
[1752605043277,0.25380896,686.12,684.81,0.98247947]
[1752605043778,0.25380896,686.12,684.77,0.98247947]
[1752605044078,0.97392059,686.1,684.73,0.98247947]
[1752605044377,0.97392059,686.03,684.77,0.98247947]
[1752605044778,0.97392059,686.01,684.74,0.98247947]
[1752605045174,0.97392059,686.0,684.74,0.98247947]
[1752605046177,0.97392059,686.01,684.73,0.98247947]
[1752605046477,0.97392059,685.99,684.72,0.98247947]
[1752605047180,0.97392059,686.0,684.71,0.98247947]
[1752605047980,0.97392059,685.98,684.69,0.98247947]
[1752605048179,0.97392059,685.99,684.69,0.98247947]
[1752605049181,0.97392059,685.99,684.68,0.98247947]
[1752605049381,0.97392059,685.99,684.69,0.98247947]
[1752605050781,0.97392059,686.0,684.69,0.98247947]
[1752605051081,0.97392059,685.99,684.68,0.98247947]
[1752605051682,0.97392059,685.99,684.69,0.98247947]
[1752605052078,0.97392059,686.0,684.69,0.98247947]